bitfinex/quotes_SOLUSD_20241122
["timestamp","ask_amount","ask_price","bid_price","bid_amount"]
[1732246352436,38.12506448,263.16,262.8,15.182817]
[1732246352640,23.776884,263.15,262.82,5.28978691]
[1732246352844,0.3,263.16,262.83,0.5704265]
[1732246353443,0.3,263.16,262.84,6.08113651]
[1732246353626,0.3,263.16,262.85,20.0]
[1732246353827,0.3,263.16,262.86,6.08113651]
[1732246354041,0.3,263.16,262.87,43.776884]
[1732246354235,0.3,263.16,262.9,20.0]
[1732246354436,0.3,263.15,262.92,20.0]
[1732246355324,23.776884,263.12,262.86,3.795]
[1732246356345,23.776884,263.12,262.87,3.795]
[1732246356546,37.82506448,263.11,262.79,4.36551402]
[1732246356752,23.776884,263.08,262.81,3.795]
[1732246357930,23.776884,263.08,262.82,27.571884]
[1732246358132,23.776884,263.08,262.82,3.795]
[1732246358532,23.776884,263.08,262.84,20.0]
[1732246359132,31.4622,263.07,262.82,23.776884]
[1732246359441,23.776884,263.04,262.83,20.0]
[1732246359643,0.3,263.03,262.83,20.0]
[1732246359826,0.3,263.03,262.67,0.57068827]
[1732246360027,23.776884,263.04,262.67,0.57068827]
[1732246360028,0.3,263.02,262.67,0.57068827]
[1732246360246,0.3,263.01,262.68,9.87613651]
[1732246360545,0.3,263.01,262.69,0.57068214]
[1732246360935,0.3,263.0,262.69,18.05181865]
[1732246361143,0.3,263.0,262.71,3.795]
[1732246361437,0.3,263.0,262.75,23.795]
[1732246361639,0.3,263.0,262.72,11.94154399]
[1732246361640,37.82506448,262.96,262.76,6.08113651]
[1732246361846,37.82506448,262.96,262.54,189.89545449]
[1732246361847,56.631684,262.94,262.54,189.89545449]
[1732246362050,0.3,262.93,262.55,3.795]
[1732246362227,0.3,262.93,262.56,0.57092993]
[1732246362939,0.3,262.93,262.58,2.49999999]
[1732246363150,0.3,262.92,262.59,4.36580146]
[1732246363529,0.3,262.92,262.59,14.59514562]
[1732246363841,0.3,262.92,262.61,3.795]
[1732246364040,32.8548,262.94,262.62,3.07081049]
[1732246364041,0.3,262.91,262.62,3.07081049]
[1732246364245,0.3,262.91,262.63,23.776884]
[1732246364427,0.3,262.93,262.7,20.0]
[1732246364628,0.3,262.92,262.75,23.776884]
[1732246364835,0.3,262.92,262.77,23.776884]
[1732246365042,32.8548,262.94,262.78,20.0]
[1732246365043,0.3,262.91,262.78,20.0]
[1732246365451,0.3,262.91,262.66,24.87047753]
[1732246365642,0.3,262.9,262.69,23.776884]
[1732246365841,0.3,262.9,262.71,23.776884]
[1732246366144,0.3,262.89,262.7,20.0]
[1732246366752,0.3,262.89,262.57,20.0]
[1732246366927,0.3,262.88,262.58,0.57088238]
[1732246367744,12.3786,262.87,262.58,0.57088238]
[1732246368453,0.3,262.86,262.54,189.89545449]
[1732246368752,0.3,262.86,262.55,0.57102858]
[1732246368967,0.3,262.85,262.55,0.57102858]
[1732246369546,0.3,262.84,262.6,2.49999999]
[1732246369751,0.3,262.84,262.61,5.13597688]
[1732246369952,0.3,262.84,262.62,20.0]
[1732246370146,0.3,262.84,262.63,0.5707995]
[1732246370345,0.3,262.83,262.64,23.776884]
[1732246370650,0.3,262.83,262.67,20.0]
[1732246370853,0.3,262.83,262.71,20.0]
[1732246371051,12.3786,262.87,262.72,24.34758633]
[1732246371228,12.3786,262.87,262.76,23.776884]
[1732246371430,12.3786,262.87,262.78,23.776884]
[1732246371650,12.3786,262.87,262.81,20.0]
[1732246371841,12.3786,262.87,262.82,23.776884]
[1732246372040,12.3786,262.87,262.83,20.0]
[1732246372554,12.3786,262.87,262.84,23.776884]
[1732246372850,12.3786,262.87,262.65,20.0]
[1732246373056,0.3,262.86,262.65,20.0]
[1732246373237,0.3,262.86,262.66,0.57075713]
[1732246374135,0.3,262.85,262.67,23.776884]
[1732246374636,0.3,262.85,262.66,23.776884]
[1732246374837,0.3,262.85,262.68,23.776884]
[1732246375036,0.3,262.85,262.71,20.0]
[1732246375253,0.3,262.84,262.71,20.0]
[1732246375756,0.3,262.84,262.73,20.0]
[1732246375936,0.3,262.86,262.73,20.0]
[1732246376137,0.3,262.86,262.75,20.0]
[1732246376558,0.3,262.86,262.77,20.0]
[1732246376741,0.3,262.85,262.77,20.0]
[1732246377461,12.3786,262.87,262.64,0.5707219]
[1732246377640,0.3,262.86,262.64,0.5707219]
[1732246378435,0.3,262.86,262.6,4.36587722]
[1732246378640,0.3,262.86,262.64,3.795]
[1732246378836,0.3,262.85,262.65,23.776884]
[1732246379254,0.3,262.84,262.63,23.776884]
[1732246379552,0.3,262.83,262.59,0.57088437]
[1732246379736,0.3,262.83,262.55,20.68632599]
[1732246379932,0.3,262.82,262.55,20.68632599]
[1732246380133,0.3,262.82,262.56,0.57099627]
[1732246380336,33.1548,262.81,262.49,0.57103128]
[1732246380543,0.3,262.8,262.49,0.57103128]
[1732246380759,32.8548,262.81,262.49,0.57103128]
[1732246380760,0.3,262.79,262.49,0.57103128]
[1732246381136,32.8548,262.81,262.49,0.57103128]
[1732246381137,23.776884,262.77,262.49,0.57103128]
[1732246381365,23.776884,262.77,262.39,3.795]
[1732246381366,0.3,262.76,262.39,3.795]
[1732246381659,23.776884,262.77,262.4,0.57133745]
[1732246381660,23.776884,262.71,262.4,0.57133745]
[1732246381842,23.776884,262.71,262.35,20.68632599]
[1732246381843,0.3,262.7,262.36,0.57140812]
[1732246382047,23.776884,262.67,262.36,0.57140812]
[1732246382238,26.276884,262.65,262.27,4.36651936]
[1732246382564,83.35846448,262.66,262.25,20.68632599]
[1732246382565,23.776884,262.58,262.25,20.68632599]
[1732246382757,23.776884,262.58,262.24,15.210509]
[1732246382758,0.3,262.57,262.24,15.210509]
[1732246383140,0.3,262.57,262.19,0.57170487]
[1732246383468,0.3,262.56,262.31,2.49999999]
[1732246383651,0.3,262.55,262.32,10.38761647]
[1732246383849,0.3,262.55,262.35,20.68632599]
[1732246384160,32.8548,262.71,262.45,2.49999999]
[1732246384452,32.8548,262.71,262.41,22.76]
[1732246384453,0.3,262.7,262.51,23.776884]
[1732246384654,0.3,262.69,262.54,20.0]
[1732246384838,0.3,262.69,262.55,23.776884]
[1732246385037,0.3,262.69,262.56,20.0]
[1732246385452,0.3,262.68,262.35,4.80063501]
[1732246385645,0.3,262.67,262.37,20.57134756]
[1732246386242,0.3,262.67,262.37,4.36634756]
[1732246386442,0.3,262.67,262.37,0.57134756]
[1732246386636,0.3,262.66,262.31,5.54976404]
[1732246386858,38.12506448,262.65,262.25,23.18632598]
[1732246387065,12.3786,262.62,262.25,20.68632599]
[1732246387237,12.3786,262.62,262.26,3.795]
[1732246387438,57.82506448,262.61,262.26,3.795]
[1732246388158,26.576884,262.6,262.24,3.795]
[1732246388356,26.576884,262.6,262.24,4.36670101]
[1732246388658,32.8548,262.58,262.24,3.795]
[1732246388845,12.3786,262.57,262.24,3.795]
[1732246389044,0.3,262.56,262.19,4.36673353]
[1732246389258,0.3,262.55,262.19,4.36673353]
[1732246389560,0.3,262.54,262.33,21.50628078]
[1732246389763,0.3,262.53,262.34,0.57139418]
[1732246389963,0.3,262.53,262.34,5.13658624]
[1732246390453,0.3,262.53,262.35,47.571884]
[1732246390762,0.3,262.53,262.4,20.0]
[1732246390968,0.3,262.52,262.44,20.0]
[1732246391160,0.3,262.52,262.45,23.776884]
[1732246391364,0.3,262.56,262.49,23.776884]
[1732246391572,0.3,262.56,262.53,23.776884]
[1732246391741,12.6786,262.57,262.55,23.776884]
[1732246391946,25.90894764,262.58,262.57,23.776884]
[1732246392261,15.4901691,262.58,262.57,20.0]
[1732246392741,15.4901691,262.58,262.48,23.776884]
[1732246392935,15.4901691,262.58,262.49,20.0]
[1732246393159,15.4901691,262.58,262.48,23.776884]
[1732246393160,0.3,262.75,262.54,23.776884]
[1732246393467,2.5,262.89,262.51,20.0]
[1732246393468,0.3,262.74,262.56,23.776884]
[1732246393759,0.3,262.74,262.62,23.776884]
[1732246393959,0.3,262.73,262.65,20.0]
[1732246394339,0.3,262.73,262.41,22.76]
[1732246394539,37.82506448,262.81,262.42,44.34807155]
[1732246394540,0.3,262.72,262.42,44.34807155]
[1732246394940,0.3,262.72,262.42,48.91326361]
[1732246394941,13.2556,262.71,262.42,48.91326361]
[1732246395163,32.1451,262.7,262.42,44.34807155]
[1732246396861,32.1451,262.7,262.42,43.84807155]
[1732246397842,32.1451,262.7,262.43,4.97832008]
[1732246398158,32.1451,262.7,262.45,23.776884]
[1732246398867,32.1451,262.7,262.46,20.0]
[1732246399158,32.1451,262.7,262.48,20.0]
[1732246399343,0.3,262.69,262.49,23.776884]
[1732246399543,0.3,262.69,262.5,20.0]
[1732246399742,0.3,262.69,262.52,20.0]
[1732246399950,0.3,262.69,262.53,23.776884]
[1732246400165,0.3,262.69,262.56,20.0]
[1732246400370,0.3,262.68,262.61,23.776884]
[1732246400551,0.3,262.68,262.64,20.0]
[1732246400755,0.3,262.69,262.65,23.776884]
[1732246401062,0.3,262.69,262.64,20.0]
[1732246401274,32.1451,262.7,262.67,23.776884]
[1732246401574,32.1451,262.7,262.68,20.0]
[1732246402159,45.4007,262.88,262.69,23.776884]
[1732246402361,0.3,262.87,262.72,20.0]
[1732246402951,0.3,262.86,262.61,23.776884]
[1732246403152,38.12506448,262.85,262.65,23.776884]
[1732246403553,38.12506448,262.85,262.66,20.0]
[1732246404169,37.82506448,262.83,262.57,20.0]
[1732246404369,37.82506448,262.83,262.6,23.776884]
[1732246404571,37.82506448,262.83,262.64,23.776884]
[1732246404872,23.776884,262.83,262.65,20.0]
[1732246405092,61.60194848,262.83,262.65,20.0]
[1732246405870,23.776884,262.83,262.65,20.0]
[1732246406080,0.3,262.82,262.65,20.0]
[1732246406571,0.3,262.81,262.7,23.776884]
[1732246406775,0.3,262.87,262.74,23.776884]
[1732246406950,0.3,262.86,262.76,23.776884]
[1732246407151,0.3,262.86,262.8,23.776884]
[1732246407372,45.4007,262.88,262.82,23.776884]
[1732246407373,0.3,262.85,262.82,23.776884]
[1732246407675,0.3,262.85,262.83,20.0]
[1732246408059,0.3,262.87,262.83,20.0]
[1732246408253,0.3,262.86,262.83,20.0]
[1732246408452,0.3,262.85,262.83,20.0]
[1732246409151,0.3,262.87,262.83,20.0]
[1732246409353,0.3,262.87,262.85,20.0]
[1732246409650,0.3,262.87,262.86,43.776884]
[1732246409863,0.3,262.97,262.87,20.0]
[1732246410049,0.3,262.96,262.89,20.0]
[1732246410452,0.3,262.96,262.69,23.776884]
[1732246410671,0.3,262.95,262.71,23.776884]
[1732246410851,0.3,262.95,262.74,20.0]
[1732246411054,0.3,262.95,262.76,20.0]
[1732246411252,0.3,262.94,262.78,20.0]
[1732246411475,0.3,262.94,262.79,23.776884]
[1732246411663,0.3,262.93,262.76,20.0]
[1732246412172,0.3,262.93,262.67,4.56519206]
[1732246412355,0.3,262.92,262.67,4.56519206]
[1732246412871,0.3,262.91,262.58,9.04602408]
[1732246413072,0.3,262.9,262.61,4.56519206]
[1732246413486,0.3,262.9,262.62,5.82194721]
[1732246413651,0.3,262.9,262.63,4.56519206]
[1732246413979,57.82506448,262.97,262.63,4.56519206]
[1732246413980,0.3,262.89,262.64,0.57078341]
[1732246414187,0.3,262.88,262.65,28.34207606]
[1732246414358,0.3,262.88,262.67,23.776884]
[1732246414555,0.3,262.88,262.69,23.776884]
[1732246414765,0.3,262.88,262.7,20.0]
[1732246414969,0.3,262.87,262.72,20.0]
[1732246415164,0.3,262.87,262.73,23.776884]
[1732246415363,0.3,262.87,262.74,20.0]
[1732246415569,0.3,262.86,262.74,20.0]
[1732246416191,0.3,262.86,262.65,4.94323607]
[1732246416488,0.3,262.86,262.63,4.56519206]
[1732246416697,0.3,262.85,262.63,4.56519206]
[1732246418084,0.3,262.85,262.65,20.0]
[1732246418282,0.3,262.85,262.66,23.776884]
[1732246418584,31.0713,262.81,262.53,4.70419033]
[1732246418770,0.3,262.8,262.53,4.70419033]
[1732246418970,0.3,262.79,262.54,4.56519206]
[1732246420098,37.82506448,262.76,262.47,4.70419033]
[1732246420385,37.82506448,262.74,262.43,4.56519206]
[1732246420799,0.1,262.73,262.44,0.57132684]
[1732246421667,0.1,262.73,262.45,5.25102408]
[1732246421885,0.1,262.72,262.46,0.57121869]
[1732246422092,0.1,262.72,262.47,9.81621614]
[1732246422294,0.1,262.72,262.48,20.57113075]
[1732246422599,0.1,262.72,262.53,23.776884]
[1732246422768,0.1,262.71,262.56,20.0]
[1732246422972,0.1,262.71,262.59,23.776884]
[1732246423185,0.1,262.7,262.6,20.0]
[1732246423989,0.1,262.7,262.61,23.776884]
[1732246424205,0.1,262.7,262.6,20.0]
[1732246424689,0.1,262.69,262.44,20.0]
[1732246424892,13.129,262.67,262.43,0.57122097]
[1732246425088,13.129,262.67,262.38,9.26938239]
[1732246425395,0.1,262.66,262.38,9.26938239]
[1732246425976,0.1,262.66,262.39,4.56519206]
[1732246426179,0.1,262.65,262.39,4.56519206]
[1732246426682,0.1,262.65,262.39,24.56519206]
[1732246426994,0.1,262.64,262.39,4.56519206]
[1732246427181,33.2539,262.63,262.34,0.5714607]
[1732246427381,0.1,262.62,262.31,9.26938239]
[1732246427589,23.776884,262.6,262.31,14.27491393]
[1732246427802,37.92506448,262.59,262.31,5.00553154]
[1732246428093,0.1,262.59,262.32,5.13685768]
[1732246428697,37.92506448,262.59,262.26,5.13676717]
[1732246428997,0.1,262.59,262.26,9.8409575]
[1732246429292,0.1,262.59,262.28,3.795]
[1732246429496,37.92506448,262.59,262.29,0.5715734]
[1732246429679,0.1,262.58,262.29,0.5715734]
[1732246429879,0.1,262.58,262.3,3.795]
[1732246430595,0.1,262.58,262.32,20.0]
[1732246431096,0.1,262.58,262.38,20.0]
[1732246431406,0.1,262.57,262.42,20.0]
[1732246431701,0.1,262.57,262.44,20.0]
[1732246431997,0.1,262.56,262.42,20.0]
[1732246432200,0.1,262.56,262.44,20.0]
[1732246433077,0.1,262.56,262.41,23.776884]
[1732246433480,0.1,262.56,262.43,23.776884]
[1732246433805,0.1,262.56,262.44,20.0]
[1732246434481,0.1,262.55,262.46,20.0]
[1732246434679,0.1,262.55,262.49,23.776884]
[1732246435097,0.1,262.55,262.5,20.0]
[1732246435300,0.1,262.54,262.5,20.0]
[1732246435507,0.1,262.54,262.36,23.776884]
[1732246435811,33.1539,262.63,262.36,23.776884]
[1732246435812,0.1,262.53,262.39,20.0]
[1732246435984,0.1,262.53,262.32,4.56519206]
[1732246436178,0.1,262.52,262.32,4.56519206]
[1732246436377,13.129,262.5,262.28,4.70419033]
[1732246436576,0.1,262.49,262.28,4.70419033]
[1732246436802,0.1,262.49,262.26,4.56519206]
[1732246437308,0.1,262.49,262.21,5.13704346]
[1732246437491,0.1,262.48,262.21,9.84123379]
[1732246437884,0.1,262.48,262.22,9.66632552]
[1732246438088,0.1,262.48,262.23,5.13691717]
[1732246438293,0.1,262.48,262.24,23.776884]
[1732246438488,0.1,262.48,262.25,4.56519206]
[1732246438789,33.1539,262.47,262.25,4.56519206]
[1732246440197,0.1,262.46,262.25,4.56519206]
[1732246440397,0.1,262.46,262.2,0.57181969]
[1732246440601,0.1,262.46,261.89,19.62531082]
[1732246440602,38.19059571,262.38,262.0,192.62057204]
[1732246440806,0.1,262.37,262.01,15.95519206]
[1732246440983,0.1,262.37,262.03,13.88999999]
[1732246441181,0.1,262.37,262.04,8.36419206]
[1732246441496,38.29059571,262.36,262.04,8.36419206]
[1732246441676,0.1,262.35,262.04,8.36419206]
[1732246441882,0.1,262.35,262.05,0.57215428]
[1732246442083,0.1,262.35,262.05,5.13734634]
[1732246442387,13.129,262.34,262.06,4.56519206]
[1732246442688,0.1,262.33,262.06,4.56519206]
[1732246443207,0.1,262.33,262.07,20.57212727]
[1732246443504,0.1,262.33,262.08,24.56519206]
[1732246443795,0.1,262.33,262.09,20.57207321]
[1732246444198,0.1,262.33,262.09,20.0]
[1732246444406,0.1,262.33,262.08,4.56519206]
[1732246444615,0.1,262.33,262.01,4.25435742]
[1732246444616,38.19059571,262.28,261.98,3.86930145]
[1732246444785,38.19059571,262.2,261.92,4.56519206]
[1732246444983,0.1,262.19,261.87,0.57250737]
[1732246445211,38.29059571,262.18,261.87,13.19098247]
[1732246445504,38.29059571,262.18,261.88,4.56519206]
[1732246445505,23.876884,262.17,261.88,4.56519206]
[1732246445706,23.776884,262.15,261.88,4.56519206]
[1732246446286,23.776884,262.13,261.88,4.56519206]
[1732246446506,0.1,262.12,261.88,4.56519206]
[1732246446810,0.1,262.12,261.83,0.57254094]
[1732246447106,0.1,262.12,261.83,5.137733]
[1732246447605,13.129,262.14,261.89,20.0]
[1732246447606,0.1,262.11,261.89,20.0]
[1732246447781,0.1,262.11,261.92,23.776884]
[1732246447983,0.1,262.1,261.95,20.0]
[1732246448289,0.1,262.13,262.0,23.776884]
[1732246448489,0.1,262.13,262.03,20.0]
[1732246448701,0.1,262.12,262.04,23.776884]
[1732246448899,0.1,262.11,262.05,20.0]
[1732246449103,13.129,262.22,261.8,210.36140503]
[1732246449104,0.1,262.1,261.81,0.5724633]
[1732246449307,0.1,262.09,261.82,12.68885093]
[1732246449512,0.1,262.09,261.83,4.37157468]
[1732246449812,0.1,262.09,261.85,3.799]
[1732246449988,0.1,262.09,261.86,0.57254858]
[1732246450584,0.1,262.09,261.86,20.57254858]
[1732246450788,0.1,262.09,261.85,4.56519206]
[1732246451312,38.19059571,262.16,261.85,4.56519206]
[1732246451313,0.1,262.08,261.85,4.56519206]
[1732246451514,13.129,262.07,261.85,4.56519206]
[1732246451686,13.129,262.07,261.82,0.57265541]
[1732246452008,32.42,262.05,261.79,4.56519206]
[1732246452310,32.42,262.05,261.8,0.5727098]
[1732246453107,32.42,262.05,261.81,23.776884]
[1732246453484,32.42,262.05,261.8,20.5727098]
[1732246453688,23.876884,262.04,261.81,24.56519206]
[1732246453888,0.1,262.03,261.73,3.799]
[1732246454110,23.776884,262.04,261.74,4.56519206]
[1732246454111,0.1,262.02,261.74,4.56519206]
[1732246454312,0.1,262.01,261.75,0.57282455]
[1732246454519,0.1,262.0,261.76,4.56519206]
[1732246454693,23.776884,261.98,261.69,4.565192]
[1732246454894,23.776884,261.98,261.66,9.5468972]
[1732246455191,23.776884,261.98,261.6,193.98987349]
[1732246455192,23.776884,261.96,261.69,4.56519206]
[1732246455393,0.1,261.95,261.69,4.56519206]
[1732246455896,0.1,261.95,261.69,5.13814581]
[1732246456100,0.1,261.94,261.69,4.56519206]
[1732246456520,0.1,261.93,261.69,4.56519206]
[1732246457025,0.1,261.93,261.7,20.57297155]
[1732246457515,0.1,261.92,261.69,4.56519206]
[1732246457713,0.1,261.91,261.69,4.56519206]
[1732246458120,32.42,261.89,261.69,24.56519206]
[1732246458702,32.42,261.89,261.69,4.56519206]
[1732246458916,32.42,261.89,261.7,4.56519206]
[1732246458917,0.1,261.88,261.7,4.56519206]
[1732246459226,32.42,261.89,261.71,20.5729772]
[1732246459227,0.1,261.87,261.71,20.5729772]
[1732246459616,0.1,261.86,261.71,20.0]
[1732246459919,0.1,261.85,261.63,20.57307008]
[1732246460102,0.1,261.84,261.64,4.25435742]
[1732246460403,0.1,261.88,261.65,0.57293745]
[1732246460602,0.1,261.88,261.64,24.56519206]
[1732246460915,13.096,261.86,261.64,4.56519206]
[1732246461307,0.1,261.85,261.64,4.56519206]
[1732246461628,0.1,261.84,261.64,4.56519206]
[1732246461795,13.096,261.86,261.64,4.56519206]
[1732246461796,0.1,261.83,261.64,4.56519206]
[1732246462002,0.1,261.82,261.64,4.56519206]
[1732246462197,0.1,261.81,261.64,4.56519206]
[1732246462402,0.1,261.8,261.64,4.56519206]
[1732246462807,13.096,261.86,261.64,4.56519206]
[1732246462808,0.1,261.79,261.64,4.56519206]
[1732246463132,0.1,261.78,261.64,4.56519206]
[1732246463318,0.1,261.77,261.57,4.25435742]
[1732246463622,0.1,261.76,261.57,4.49296984]
[1732246463832,0.1,261.75,261.56,4.25435742]
[1732246464039,0.1,261.74,261.56,4.25435742]
[1732246464323,0.1,261.74,261.56,8.74732726]
[1732246464500,0.1,261.74,261.57,4.49296984]
[1732246464819,0.1,261.74,261.58,4.25435742]
[1732246465027,0.1,261.74,261.59,24.49296984]
[1732246465207,0.1,261.74,261.6,4.25435742]
[1732246465413,0.1,261.74,261.62,20.0]
[1732246465608,0.1,261.85,261.66,20.0]
[1732246465808,0.1,261.84,261.71,23.776884]
[1732246466008,0.1,261.84,261.73,23.776884]
[1732246466200,0.1,261.83,261.74,20.0]
[1732246466401,13.096,261.86,261.74,20.0]
[1732246467207,13.096,261.86,261.76,20.0]
[1732246467405,13.096,261.86,261.8,20.0]
[1732246467599,13.096,261.86,261.82,20.0]
[1732246468115,13.096,261.86,261.76,23.776884]
[1732246468428,13.096,261.86,261.79,20.0]
[1732246468627,13.096,261.86,261.81,20.0]
[1732246469230,13.096,261.86,261.79,20.0]
[1732246469531,13.096,261.86,261.82,23.776884]
[1732246469824,13.096,261.86,261.74,23.776884]
[1732246470124,32.42,261.89,261.76,23.776884]
[1732246470900,0.1,261.88,261.75,4.49296984]
[1732246471108,0.1,261.87,261.67,8.36227129]
[1732246471409,0.1,261.86,261.68,4.49296984]
[1732246471611,0.1,261.85,261.68,4.49296984]
[1732246471803,32.42,261.89,261.68,4.49296984]
[1732246471804,0.1,261.84,261.68,4.49296984]
[1732246472829,13.076,261.83,261.58,0.57307498]
[1732246473029,13.076,261.83,261.61,4.49296984]
[1732246473030,0.1,261.82,261.61,4.49296984]
[1732246473212,12.976,261.83,261.61,4.49296984]
[1732246473213,0.1,261.81,261.61,4.49296984]
[1732246473419,0.1,261.81,261.62,4.25435742]
[1732246473621,12.976,261.83,261.62,4.25435742]
[1732246473622,12.976,261.83,261.63,5.06613384]
[1732246473817,0.1,261.82,261.64,4.25435742]
[1732246474119,0.1,261.81,261.63,4.49296984]
[1732246474321,0.1,261.8,261.63,4.49296984]
[1732246474532,0.1,261.79,261.63,4.49296984]
[1732246474730,0.1,261.78,261.63,4.49296984]
[1732246474923,0.1,261.77,261.63,4.49296984]
[1732246475116,0.1,261.76,261.63,4.49296984]
[1732246475433,0.1,261.75,261.63,4.49296984]
[1732246475813,0.1,261.74,261.58,5.00465994]
[1732246476012,0.1,261.73,261.59,20.0]
[1732246476309,15.476,261.83,261.55,4.49296984]
[1732246476310,0.1,261.72,261.55,4.49296984]
[1732246476510,0.1,261.71,261.55,4.49296984]
[1732246477535,0.1,261.71,261.56,23.776884]
[1732246477835,0.1,261.7,261.57,4.49296984]
[1732246478010,0.1,261.82,261.57,28.74732726]
[1732246478212,12.976,261.83,261.57,28.74732726]
[1732246478213,0.1,261.81,261.57,28.74732726]
[1732246478728,0.1,261.8,261.58,24.82760413]
[1732246478933,0.1,261.79,261.6,23.776884]
[1732246479238,0.1,261.82,261.65,20.0]
[1732246479537,12.976,261.83,261.71,20.0]
[1732246479836,12.976,261.83,261.73,20.0]
[1732246480008,0.1,261.82,261.73,20.0]
[1732246480213,0.1,261.81,261.48,2.49999999]
[1732246480420,0.1,261.8,261.55,20.0]
[1732246480616,0.1,261.79,261.56,4.49296984]
[1732246481608,0.1,261.79,261.57,32.4737884]
[1732246481815,0.1,261.79,261.59,23.776884]
[1732246482009,0.1,261.79,261.63,23.776884]
[1732246482221,12.976,261.83,261.68,20.0]
[1732246482222,0.1,261.78,261.68,20.0]
[1732246482437,0.1,261.78,261.69,23.776884]
[1732246482615,0.1,261.77,261.72,20.0]
[1732246482815,0.1,261.76,261.72,20.0]
[1732246485136,0.1,261.82,261.72,20.0]
[1732246485528,0.1,261.81,261.74,20.0]
[1732246485725,0.1,261.8,261.74,20.0]
[1732246486238,0.1,261.8,261.76,20.0]
[1732246486435,0.1,261.79,261.78,43.776884]
[1732246486612,0.1,261.79,261.78,20.0]
[1732246486819,0.1,261.78,261.63,4.49296984]
[1732246487021,0.1,261.77,261.63,4.49296984]
[1732246487443,0.1,261.76,261.63,4.49296984]
[1732246487643,0.1,261.75,261.63,4.49296984]
[1732246488922,0.1,261.75,261.64,23.776884]
[1732246489125,0.1,261.75,261.66,23.776884]
[1732246489524,0.1,261.75,261.67,20.0]
[1732246489840,0.1,261.75,261.68,23.776884]
[1732246490031,0.1,261.75,261.69,20.0]
[1732246490237,12.976,261.83,261.71,20.0]
[1732246490427,0.1,261.82,261.71,20.0]
[1732246490741,0.1,261.82,261.75,20.0]
[1732246491720,0.1,261.82,261.73,23.776884]
[1732246491920,0.1,261.82,261.74,20.0]
[1732246492228,0.1,261.82,261.77,23.776884]
[1732246492535,12.976,261.83,261.77,23.776884]
[1732246492731,0.1,261.88,261.79,23.776884]
[1732246492924,12.3675,262.09,261.85,23.776884]
[1732246493125,0.1,262.08,261.87,26.276884]
[1732246493431,0.1,262.07,261.93,23.776884]
[1732246493633,0.1,262.06,261.97,23.776884]
[1732246493851,0.1,262.06,261.98,20.0]
[1732246494153,0.1,262.06,262.0,20.0]
[1732246494351,12.3675,262.09,262.0,20.0]
[1732246495043,12.3675,262.09,261.9,20.0]
[1732246495344,0.1,262.08,261.95,23.776884]
[1732246495550,0.1,262.08,261.94,20.0]
[1732246496152,0.1,262.08,261.9,23.776884]
[1732246496341,0.1,262.07,261.91,20.0]
[1732246496544,0.1,262.07,261.93,20.0]
[1732246496746,0.1,262.07,261.94,23.776884]
[1732246496949,0.1,262.07,261.95,20.0]